fUSD/lending_fUSD_20251217
["ID","MTS","AMOUNT","RATE_DAILY","PERIOD"]
[398872894,1765945834848,-500.0,0.00013957,2]
[398872895,1765945834859,-500.0,0.00013957,2]
[398872896,1765945834868,-264.1886854,0.00013957,2]
[398872897,1765945834877,-500.0,0.00013957,2]
[398872898,1765945834887,-500.0,0.00013957,2]
[398872899,1765945834897,-500.0,0.00013957,2]
[398872900,1765945834907,-500.0,0.00013957,2]
[398872901,1765945834919,-500.0,0.00013957,2]
[398872902,1765945834929,-500.0,0.00013957,2]
[398872903,1765945834938,-500.0,0.00013957,2]
[398872904,1765945834947,-500.0,0.00013957,2]
[398872905,1765945834956,-618.36681449,0.00013957,2]
[398872906,1765945834965,-528.56418442,0.00013957,2]
[398872907,1765945834974,-500.0,0.00013957,2]
[398872908,1765945834984,-500.0,0.00013957,2]
[398872909,1765945834997,-500.0,0.00013957,2]
[398872910,1765945835006,-500.0,0.00013957,2]
[398872911,1765945835015,-500.0,0.00013957,2]
[398872912,1765945835024,-500.0,0.00013957,2]
[398872913,1765945835033,-500.0,0.00013957,2]
[398872914,1765945835042,-500.0,0.00013957,2]
[398872915,1765945835051,-500.0,0.00013957,2]
[398872916,1765945835061,-500.0,0.00013957,2]
[398872917,1765945835070,-500.0,0.00013957,2]
[398872918,1765945835080,-500.0,0.00013957,2]
[398872919,1765945835090,-500.0,0.00013957,2]
[398872920,1765945835100,-500.0,0.00013957,2]
[398872921,1765945835110,-500.0,0.00013957,2]
[398872922,1765945835123,-500.0,0.00013957,2]
[398872923,1765945835132,-500.0,0.00013957,2]
[398872924,1765945835141,-500.0,0.00013957,2]
[398872925,1765945835151,-500.0,0.00013957,2]
[398872926,1765945835160,-500.0,0.00013957,2]
[398872927,1765945835169,-500.0,0.00013957,2]
[398872928,1765945835179,-1200.0,0.00013957,2]
[398872929,1765945835188,-928.51,0.00013962,2]
[398872930,1765945835198,-3036.65095981,0.0001401,2]
[398872931,1765945835213,-578.82904019,0.0001401,2]
[398872932,1765945835223,-200.0,0.00014019,2]
[398872933,1765945835232,-220.17095981,0.00014099,2]
[398872934,1765945835372,-1785.61962821,0.00014099,2]
[398872935,1765945835383,-518.04655203,0.00014099,2]
[398873027,1765945842083,-864.58285995,0.00014099,2]
[398873028,1765945842093,-477.11487262,0.00014099,2]
[398873029,1765945842103,-1260.0,0.00014099,2]
[398873030,1765945842114,-1118.10003,0.00014099,2]
[398873031,1765945842124,-2619.30509738,0.00014099,2]
[398873032,1765945842135,-8733.16,0.00014099,2]
[398873033,1765945842144,-299.99,0.00014099,2]
[398873034,1765945842153,-928.51,0.00014236,2]
[398873035,1765945842162,-500.0,0.00014273,2]
[398873036,1765945842171,-503.37020168,0.00014273,2]
[398873037,1765945842179,-500.0,0.00014273,2]
[398873038,1765945842189,-500.0,0.00014273,2]
[398873039,1765945842198,-500.0,0.00014273,2]
[398873040,1765945842207,-500.0,0.00014273,2]
[398873041,1765945842216,-500.0,0.00014273,2]
[398873042,1765945842225,-317.67110228,0.00014273,2]
[398873043,1765945842272,-182.32889772,0.00014273,2]
[398873044,1765945842281,-500.0,0.00014273,2]
[398873045,1765945842289,-500.0,0.00014273,2]
[398873046,1765945842298,-500.0,0.00014273,2]
[398873047,1765945842307,-500.0,0.00014273,2]
[398873048,1765945842316,-500.0,0.00014273,2]
[398873049,1765945842326,-500.0,0.00014273,2]
[398873050,1765945842334,-500.0,0.00014273,2]
[398873051,1765945842343,-500.0,0.00014273,2]
[398873052,1765945842352,-500.0,0.00014273,2]
[398873053,1765945842361,-500.0,0.00014273,2]
[398873054,1765945842371,-500.0,0.00014273,2]
[398873055,1765945842380,-500.0,0.00014273,2]
[398873056,1765945842389,-500.0,0.00014273,2]
[398873057,1765945842399,-500.0,0.00014273,2]
[398873058,1765945842408,-500.0,0.00014273,2]
[398873059,1765945842418,-500.0,0.00014273,2]
[398873060,1765945842427,-928.51,0.0001451,2]
[398873061,1765945842436,-208.8831,0.00014581,2]
[398873062,1765945842445,-719.35435318,0.00014664,2]
[398873063,1765945842454,-22781.34768083,0.00014672,2]
[398873064,1765945842463,-500.0,0.00014672,2]
[398873065,1765945842472,-151.0,0.00014672,2]
[398873066,1765945842481,-151.0,0.00014672,2]
[398873067,1765945842490,-151.0,0.00014672,2]
[398873068,1765945842504,-200.0,0.00014672,2]
[398873069,1765945842513,-151.0,0.00014672,2]
[398873070,1765945842522,-200.0,0.00014672,2]
[398873071,1765945842531,-151.0,0.00014672,2]
[398873072,1765945842540,-151.0,0.00014672,2]
[398873073,1765945842549,-151.0,0.00014672,2]
[398873074,1765945842558,-151.0,0.00014672,2]
[398873075,1765945842568,-151.0,0.00014672,2]
[398873076,1765945842577,-151.0,0.00014672,2]
[398873077,1765945842586,-500.0,0.00014672,2]
[398873078,1765945842595,-151.0,0.00014672,2]
[398873079,1765945842605,-500.0,0.00014672,2]
[398873080,1765945842614,-151.0,0.00014672,2]
[398873081,1765945842623,-500.0,0.00014672,2]
[398873082,1765945842633,-151.0,0.00014672,2]
[398873083,1765945842642,-500.0,0.00014672,2]
[398873084,1765945842651,-500.0,0.00014672,2]
[398873085,1765945842662,-151.0,0.00014672,2]
[398873086,1765945842671,-500.0,0.00014672,2]
[398873087,1765945842680,-151.0,0.00014672,2]
[398873088,1765945842695,-500.0,0.00014672,2]
[398873089,1765945842706,-151.0,0.00014672,2]
[398873090,1765945842716,-151.0,0.00014672,2]
[398873091,1765945842725,-500.0,0.00014672,2]
[398873092,1765945842736,-151.0,0.00014672,2]
[398873093,1765945842746,-500.0,0.00014672,2]
[398873094,1765945842761,-151.0,0.00014672,2]
[398873095,1765945842771,-500.0,0.00014672,2]
[398873096,1765945842782,-151.0,0.00014672,2]
[398873097,1765945842792,-500.0,0.00014672,2]
[398873098,1765945842803,-151.0,0.00014672,2]
[398873099,1765945842813,-500.0,0.00014672,2]
[398873100,1765945842824,-151.0,0.00014672,2]
[398873101,1765945842834,-151.0,0.00014672,2]
[398873102,1765945842843,-151.0,0.00014672,2]
[398873103,1765945842853,-151.0,0.00014672,2]
[398873104,1765945842862,-151.0,0.00014672,2]
[398873105,1765945842871,-500.0,0.00014672,2]
[398873106,1765945842883,-151.0,0.00014672,2]
[398873107,1765945842892,-500.0,0.00014672,2]
[398873108,1765945842902,-151.0,0.00014672,2]
[398873112,1765945843339,-500.0,0.00014672,2]
[398873113,1765945843349,-243.12910629,0.00014672,2]
[398873115,1765945843358,-500.0,0.00014672,2]
[398873116,1765945843367,-200.0,0.00014672,2]
[398873117,1765945843376,-500.0,0.00014672,2]
[398873118,1765945843387,-500.0,0.00014672,2]
[398873119,1765945843396,-500.0,0.00014672,2]
[398873120,1765945843406,-500.0,0.00014672,2]
[398873121,1765945843415,-500.0,0.00014672,2]
[398873122,1765945843425,-500.0,0.00014672,2]
[398873123,1765945843434,-500.0,0.00014672,2]
[398873124,1765945843443,-500.0,0.00014672,2]
[398873125,1765945843452,-500.0,0.0001468,2]
[398873126,1765945843462,-500.0,0.0001468,2]
[398873127,1765945843471,-500.0,0.0001468,2]
[398873128,1765945843480,-504.46336391,0.0001468,2]
[398873129,1765945843490,-500.0,0.0001468,2]
[398873130,1765945843500,-265.47277519,0.0001468,2]
[398873131,1765945843509,-507.65587997,0.0001468,2]
[398873132,1765945843519,-500.0,0.0001468,2]
[398873133,1765945843537,-500.0,0.0001468,2]
[398873134,1765945843548,-500.0,0.0001468,2]
[398873135,1765945843558,-500.0,0.0001468,2]
[398873136,1765945843567,-500.0,0.0001468,2]
[398873137,1765945843577,-500.0,0.0001468,2]
[398873138,1765945843586,-512.28287163,0.0001468,2]
[398873140,1765945843596,-504.65832438,0.0001468,2]
[398873141,1765945843605,-588.09,0.0001468,2]
[398873143,1765945843615,-588.09,0.0001468,2]
[398873144,1765945843624,-588.09,0.0001468,2]
[398873145,1765945843633,-500.0,0.0001468,2]
[398873146,1765945843643,-503.34884802,0.0001468,2]
[398873148,1765945843652,-500.0,0.0001468,2]
[398873149,1765945843662,-500.0,0.0001468,2]
[398873151,1765945843671,-502.97406838,0.0001468,2]
[398873153,1765945843681,-500.0,0.0001468,2]
[398873154,1765945843690,-556.65384487,0.0001468,2]
[398873155,1765945843699,-6655.91,0.0001468,2]
[398873157,1765945843708,-6655.91,0.0001468,2]
[398873158,1765945843717,-6655.91,0.0001468,2]
[398873160,1765945843727,-5321.0632,0.00014772,2]
[398873161,1765945843736,-928.51,0.00014784,2]
[398873163,1765945843745,-172.65517007,0.00014821,2]
[398873165,1765945843758,-930.70179018,0.00014821,2]
[398873166,1765945843767,-1000.0,0.00014821,2]
[398873167,1765945843776,-1000.0,0.00014821,2]
[398873168,1765945843785,-1004.5198656,0.00014821,2]
[398873169,1765945843795,-519.40893394,0.00014821,2]
[398873170,1765945843804,-500.0,0.00014821,2]
[398873171,1765945843813,-164.89616796,0.00014821,2]
[398873172,1765945843823,-500.0,0.00014821,2]
[398873173,1765945843834,-1000.0,0.00014821,2]
[398873174,1765945843844,-1000.0,0.00014821,2]
[398873175,1765945843853,-1000.0,0.00014821,2]
[398873176,1765945843862,-1000.0,0.00014821,2]
[398873177,1765945843871,-501.71174253,0.00014821,2]
[398873178,1765945843880,-500.0,0.00014821,2]
[398873179,1765945843889,-1070.23327418,0.00014821,2]
[398873180,1765945843898,-1000.0,0.00014821,2]
[398873181,1765945843907,-1000.0,0.00014821,2]
[398873182,1765945843916,-629.20788422,0.00014821,2]
[398873183,1765945843925,-1000.0,0.00014821,2]
[398873184,1765945843934,-1000.0,0.00014821,2]
[398873185,1765945843943,-677.90804802,0.00014821,2]
[398873186,1765945843952,-1000.0,0.00014821,2]
[398873187,1765945843962,-32799.2199,0.00014872,2]
[398873188,1765945843974,-1000.0,0.00014873,2]
[398873189,1765945843984,-22781.34768079,0.0001492,2]
[398873190,1765945843993,-500.0,0.00014972,2]
[398873191,1765945844002,-502.49793366,0.00014972,2]
[398873192,1765945844012,-500.0,0.00014972,2]
[398873193,1765945844021,-434.36419309,0.00014972,2]
[398873194,1765945844030,-500.0,0.00014972,2]
[398873195,1765945844039,-267.72,0.00014972,2]
[398873196,1765945844048,-500.0,0.00014972,2]
[398873197,1765945844057,-506.87819092,0.00014972,2]
[398873198,1765945844066,-550.01717938,0.00015,2]
[398873199,1765945844076,-2039.72893892,0.00015,2]
[398873200,1765945844089,-3820.2600465,0.00015,2]
[398873201,1765945844098,-13948.63446848,0.00015,2]
[398873202,1765945844107,-9796.01616902,0.00015,2]
[398873203,1765945844117,-928.51,0.00015058,2]
[398873204,1765945844126,-255.0,0.00015072,2]
[398873205,1765945844136,-187.10375317,0.00015073,2]
[398873206,1765945844145,-500.0,0.00015073,2]
[398873207,1765945844155,-500.0,0.00015073,2]
[398873208,1765945844164,-500.0,0.00015073,2]
[398873209,1765945844174,-500.0,0.00015073,2]
[398873210,1765945844183,-500.0,0.00015073,2]
[398873211,1765945844192,-500.0,0.00015073,2]
[398873212,1765945844202,-500.0,0.00015073,2]
[398873213,1765945844211,-500.82324129,0.00015073,2]
[398873214,1765945844221,-500.0,0.00015073,2]
[398873215,1765945844230,-210.54251612,0.00015073,2]
[398873216,1765945844240,-500.0,0.00015073,2]
[398873217,1765945844249,-500.0,0.00015073,2]
[398873218,1765945844259,-500.0,0.00015073,2]
[398873219,1765945844268,-500.0,0.00015073,2]
[398873220,1765945844278,-500.0,0.00015073,2]
[398873221,1765945844287,-500.0,0.00015073,2]
[398873222,1765945844297,-500.0,0.00015073,2]
[398873223,1765945844306,-500.0,0.00015073,2]
[398873224,1765945844316,-500.0,0.00015073,2]
[398873225,1765945844326,-500.0,0.00015073,2]
[398873226,1765945844336,-500.0,0.00015073,2]
[398873227,1765945844345,-500.0,0.00015073,2]
[398873228,1765945844355,-500.0,0.00015073,2]
[398873229,1765945844365,-500.0,0.00015073,2]
[398873230,1765945844374,-499.2998737,0.00015073,2]
[398873231,1765945844384,-500.0,0.00015073,2]
[398873232,1765945844394,-500.0,0.00015073,2]
[398873233,1765945844403,-501.16122772,0.00015073,2]
[398873234,1765945844413,-508.38645187,0.00015073,2]
[398873235,1765945844423,-500.0,0.00015073,2]
[398873236,1765945844432,-500.0,0.00015073,2]
[398873237,1765945844442,-500.0,0.00015073,2]
[398873238,1765945844451,-151.0,0.00015113,2]
[398873239,1765945844461,-1266.14733084,0.0001512,2]
[398873240,1765945844475,-22781.34768079,0.00015167,2]
[398873241,1765945844487,-500.0,0.0001522,2]
[398873242,1765945844497,-200.0,0.0001522,2]
[398873243,1765945844507,-200.0,0.0001522,2]
[398873244,1765945844517,-1680.0,0.00015273,2]
[398873245,1765945844528,-420.0,0.0001529,2]
[398873246,1765945844538,-420.0,0.0001529,2]
[398873247,1765945844548,-1517.64,0.000153,2]
[398873248,1765945844558,-928.51,0.00015332,2]
[398873249,1765945844567,-195.88,0.00015348,2]
[398873250,1765945844579,-500.0,0.00015368,2]
[398873251,1765945844588,-1500.0,0.00015368,2]
[398873252,1765945844598,-1503.1158733,0.00015368,2]
[398873253,1765945844609,-1500.0,0.00015368,2]
[398873254,1765945844619,-1001.73327734,0.00015368,2]
[398873255,1765945844629,-1500.0,0.00015368,2]
[398873256,1765945844642,-1000.0,0.00015368,2]
[398873257,1765945844652,-1500.0,0.00015368,2]
[398873258,1765945844661,-1500.0,0.00015368,2]
[398873259,1765945844670,-1000.0,0.00015368,2]
[398873260,1765945844679,-500.0,0.00015368,2]
[398873261,1765945844689,-1863.60049966,0.00015387,2]
[398873262,1765945844698,-226.35,0.00015393,2]
[398873263,1765945844707,-9096.09848956,0.00015415,2]
[398873264,1765945844828,-13685.24919123,0.00015415,2]
[398873265,1765945844838,-166.66,0.00015487,2]
[398873266,1765945844853,-10965.05441473,0.000155,2]
[398873267,1765945844862,-500.0,0.0001554,2]
[398873268,1765945844872,-500.0,0.0001554,2]
[398873269,1765945844881,-500.0,0.00015562,2]
[398873270,1765945844891,-19705.32162511,0.00015598,2]
[398873271,1765945844901,-928.51,0.00015606,2]
[398873272,1765945844911,-1000.0,0.00015621,2]
[398873273,1765945844921,-1000.0,0.00015621,2]
[398873274,1765945844931,-340.19399092,0.00015621,2]
[398873275,1765945844949,-336.02505012,0.00015621,2]
[398873276,1765945844960,-1012.31345181,0.00015621,2]
[398873277,1765945844969,-492.5127718,0.00015621,2]
[398873278,1765945844979,-573.25919939,0.00015621,2]
[398873279,1765945844989,-1000.0,0.00015621,2]
[398873280,1765945844999,-1000.0,0.00015621,2]
[398873281,1765945845008,-1000.0,0.00015621,2]
[398873282,1765945845019,-1000.0,0.00015621,2]
[398873283,1765945845029,-1000.0,0.00015621,2]
[398873284,1765945845039,-1000.0,0.00015621,2]
[398873285,1765945845050,-1000.0,0.00015621,2]
[398873286,1765945845060,-1000.0,0.00015621,2]
[398873287,1765945845069,-1000.0,0.00015621,2]
[398873288,1765945845080,-1000.0,0.00015621,2]
[398873289,1765945845090,-1000.0,0.00015621,2]
[398873290,1765945845100,-1000.0,0.00015621,2]
[398873291,1765945845110,-1000.0,0.00015621,2]
[398873292,1765945845120,-754.07074293,0.00015621,2]
[398873293,1765945845129,-1117.07719374,0.00015621,2]
[398873294,1765945845141,-1000.0,0.00015621,2]
[398873295,1765945845151,-500.0,0.00015621,2]
[398873296,1765945845161,-498.08794248,0.00015621,2]
[398873297,1765945845172,-500.0,0.00015621,2]
[398873298,1765945845182,-500.0,0.00015644,2]
[398873299,1765945845191,-22781.34768079,0.00015662,2]
[398873300,1765945845201,-1600.0,0.00015698,2]
[398873301,1765945845211,-19705.32162505,0.00015743,2]
[398873302,1765945845221,-1266.14733082,0.0001575,2]
[398873303,1765945845234,-500.0,0.00015768,2]
[398873304,1765945845243,-200.0,0.00015768,2]
[398873305,1765945845252,-200.0,0.00015768,2]
[398873306,1765945845262,-166.66,0.00015813,2]
[398873307,1765945845271,-928.51,0.0001588,2]
[398873308,1765945845279,-19705.32162505,0.00015887,2]
[398873309,1765945845287,-1863.60049964,0.00015889,2]
[398873310,1765945845296,-22781.34768079,0.0001591,2]
[398873311,1765945845305,-2000.0,0.00015916,2]
[398873312,1765945845314,-500.0,0.00015916,2]
[398873313,1765945845323,-2000.0,0.00015916,2]
[398873314,1765945845333,-502.53684068,0.00015916,2]
[398873315,1765945845343,-460.23018595,0.0001599,2]
[398873316,1765945845352,-151.0,0.00015997,2]
[398873317,1765945845362,-11112.25512909,0.00016,2]
[398873318,1765945845371,-143282.13408273,0.00016,2]
[398873319,1765945845381,-656360.6992067,0.00016,4]
[398873320,1765945845392,-19705.32162505,0.00016032,2]
[398873321,1765945845402,-6655.91,0.00016115,2]
[398873322,1765945845411,-2592.58,0.00016116,2]
[398873323,1765945845421,-166.66,0.00016139,2]
[398873324,1765945845431,-928.51,0.00016154,2]
[398873325,1765945845441,-22781.34768079,0.00016157,2]
[398873326,1765945845451,-415.23028169,0.00016168,2]
[398873327,1765945845460,-206.20713686,0.00016168,2]
[398873328,1765945845470,-403.27599499,0.00016168,2]
[398873329,1765945845479,-349.93238873,0.00016168,2]
[398873330,1765945845489,-1500.0,0.00016168,2]
[398873331,1765945845499,-1500.0,0.00016168,2]
[398873332,1765945845509,-1030.10800238,0.00016168,2]
[398873333,1765945845518,-540.31828283,0.00016168,2]
[398873334,1765945845528,-1500.0,0.00016168,2]
[398873335,1765945845539,-1500.0,0.00016168,2]
[398873336,1765945845549,-1500.0,0.00016168,2]
[398873337,1765945845559,-1500.0,0.00016168,2]
[398873338,1765945845568,-1500.0,0.00016168,2]
[398873339,1765945845583,-1288.10735386,0.00016168,2]
[398873340,1765945845594,-1500.0,0.00016168,2]
[398873341,1765945845605,-509.20738875,0.00016168,2]
[398873342,1765945845616,-19705.32162505,0.00016177,2]
[398873343,1765945845626,-31738.60321899,0.000162,5]
[398873344,1765945845637,-433.0,0.00016273,2]
[398873345,1765945845647,-500.0,0.00016316,2]
[398873346,1765945845659,-200.0,0.00016316,2]
[398873347,1765945845669,-200.0,0.00016316,2]
[398873348,1765945845680,-19705.32162505,0.00016321,2]
[398873349,1765945845690,-1266.14733082,0.0001638,2]
[398873350,1765945845700,-1863.60049964,0.00016391,2]
[398873351,1765945845710,-151.0,0.00016397,2]
[398873352,1765945845721,-342708.73839755,0.000164,2]
[398873353,1765945845734,-22781.34768079,0.00016405,2]
[398873354,1765945845745,-481.46730423,0.0001641,2]
[398873355,1765945845759,-928.51,0.00016428,2]
[398873356,1765945845768,-1000.0,0.00016438,2]
[398873357,1765945845778,-767.37,0.00016438,2]
[398873358,1765945845787,-767.37,0.00016438,2]
[398873359,1765945845799,-767.37,0.00016438,2]
[398873360,1765945845809,-767.37,0.00016438,2]
[398873361,1765945845822,-767.37,0.00016438,2]
[398873362,1765945845838,-961.3562878,0.00016438,2]
[398873363,1765945845848,-150.0,0.00016438,2]
[398873364,1765945845859,-600.0,0.00016438,2]
[398873365,1765945845870,-801.11438016,0.00016438,2]
[398873366,1765945845881,-164.55,0.0001644,2]
[398873367,1765945845891,-500.0,0.00016464,2]
[398873368,1765945845902,-2500.0,0.00016464,2]
[398873369,1765945845912,-166.66,0.00016465,2]
[398873370,1765945845922,-767.37,0.0001655,2]
[398873371,1765945845932,-166.66,0.000166,2]
[398873372,1765945845942,-358.48883582,0.000166,2]
[398873373,1765945845952,-22781.34768079,0.00016652,2]
[398873374,1765945845962,-928.51,0.00016702,2]
[398873375,1765945845973,-164.0,0.00016712,2]
[398873376,1765945845983,-2022.13362004,0.00016716,2]
[398873377,1765945845993,-2000.0,0.00016716,2]
[398873378,1765945846007,-2000.0,0.00016716,2]
[398873379,1765945846019,-2037.90608687,0.00016716,2]
[398873380,1765945846030,-1501.86166737,0.00016716,2]
[398873381,1765945846040,-1000.0,0.00016716,2]
[398873382,1765945846050,-1359.47056336,0.00016716,2]
[398873383,1765945846062,-1502.01227211,0.00016716,2]
[398873384,1765945846072,-587.0,0.00016752,2]
[398873385,1765945846081,-587.0,0.00016752,2]
[398873386,1765945846091,-1000.0,0.00016765,2]
[398873387,1765945846101,-166.66,0.00016791,2]
[398873388,1765945846111,-2351.0,0.000168,2]
[398873389,1765945846120,-500.0,0.00016864,2]
[398873390,1765945846130,-200.0,0.00016864,2]
[398873391,1765945846139,-200.0,0.00016864,2]
[398873392,1765945846149,-2293.97920393,0.00016886,2]
[398873393,1765945846159,-1863.60049964,0.00016893,2]
[398873394,1765945846169,-22781.34768079,0.000169,2]
[398873395,1765945846179,-156.26056198,0.000169,2]
[398873396,1765945846188,-156.26056198,0.000169,2]
[398873397,1765945846198,-156.26056198,0.000169,2]
[398873398,1765945846216,-156.26056198,0.000169,2]
[398873399,1765945846228,-156.26056198,0.000169,2]
[398873400,1765945846237,-156.26056198,0.000169,2]
[398873401,1765945846248,-156.26056198,0.000169,2]
[398873402,1765945846257,-156.26056198,0.000169,2]
[398873403,1765945846267,-156.26056198,0.000169,2]
[398873404,1765945846277,-156.26056198,0.000169,2]
[398873405,1765945846286,-156.26056198,0.000169,2]
[398873406,1765945846297,-156.26056198,0.000169,2]
[398873407,1765945846306,-156.26056198,0.000169,2]
[398873408,1765945846316,-156.26056198,0.000169,2]
[398873409,1765945846326,-156.26056198,0.000169,2]
[398873410,1765945846335,-156.26056198,0.000169,2]
[398873411,1765945846345,-156.26056198,0.000169,2]
[398873412,1765945846355,-156.26,0.000169,2]
[398873413,1765945846364,-191.94653337,0.000169,2]
[398873414,1765945846374,-191.94653337,0.000169,2]
[398873415,1765945846384,-191.94,0.000169,2]
[398873416,1765945846394,-219.63809582,0.000169,2]
[398873417,1765945846403,-161.11564941,0.000169,2]
[398873418,1765945846413,-161.11564941,0.000169,2]
[398873419,1765945846422,-161.11564941,0.000169,2]
[398873420,1765945846431,-161.11564941,0.000169,2]
[398873421,1765945846441,-161.11564941,0.000169,2]
[398873422,1765945846451,-161.11564941,0.000169,2]
[398873423,1765945846460,-161.11,0.000169,2]
[398873424,1765945846470,-306.75656046,0.000169,2]
[398873425,1765945846479,-324.98152486,0.0001691,2]
[398873426,1765945846489,-928.61115238,0.00016976,2]
[398873427,1765945846498,-671.46,0.00016986,2]
[398873428,1765945846508,-500.0,0.00016986,2]
[398873429,1765945846518,-500.0,0.00016986,2]
[398873430,1765945846528,-6655.91,0.00016986,2]
[398873431,1765945846538,-151.0,0.00016986,2]
[398873432,1765945846547,-151.0,0.00016986,2]
[398873433,1765945846556,-767.37,0.00016986,2]
[398873434,1765945846566,-633.508319,0.00016986,2]
[398873435,1765945846575,-633.508319,0.00016986,2]
[398873436,1765945846588,-633.508319,0.00016986,2]
[398873437,1765945846598,-633.508319,0.00016986,2]
[398873438,1765945846608,-151.0,0.00016986,2]
[398873439,1765945846617,-151.0,0.00016986,2]
[398873440,1765945846627,-151.0,0.00016986,2]
[398873441,1765945846636,-151.0,0.00016986,2]
[398873442,1765945846646,-151.0,0.00016986,2]
[398873443,1765945846655,-236236.87,0.00016986,2]
[398873444,1765945846665,-150.28381276,0.00016986,2]
[398873445,1765945846675,-600.0,0.00016986,2]
[398873446,1765945846685,-460.23018595,0.0001699,2]
[398873447,1765945846694,-151.0,0.00016997,2]
[398873448,1765945846703,-676.91547728,0.00016999,2]
[398873450,1765945846713,-2013.13365055,0.00016999,2]
[398873451,1765945846722,-300.0,0.00016999,2]
[398873452,1765945846732,-767.37,0.00016999,2]
[398873453,1765945846742,-767.37,0.00016999,2]
[398873454,1765945846755,-767.37,0.00016999,2]
[398873455,1765945846764,-767.37,0.00016999,2]
[398873456,1765945846773,-767.37,0.00016999,2]
[398873457,1765945846784,-767.37,0.00016999,2]
[398873458,1765945846795,-767.37,0.00016999,2]
[398873459,1765945846805,-767.37,0.00016999,2]
[398873460,1765945846815,-767.37,0.00016999,2]
[398873461,1765945846825,-767.37,0.00016999,2]
[398873462,1765945846835,-767.37,0.00016999,2]
[398873463,1765945846844,-767.37,0.00016999,2]
[398873464,1765945846853,-767.37,0.00016999,2]
[398873465,1765945846863,-767.37,0.00016999,2]
[398873466,1765945846872,-767.37,0.00016999,2]
[398873467,1765945846881,-767.37,0.00016999,2]
[398873468,1765945846891,-767.50478548,0.00016999,2]
[398873469,1765945846901,-300.0,0.00016999,2]
[398873470,1765945846911,-1617961.00979455,0.00017,2]
[398873471,1765945846928,-13584.63108994,0.00017,2]
[398873472,1765945848682,-6057.14710165,0.00016466,2]
[398873473,1765945848695,-2175.02066338,0.00016466,2]
[398873474,1765945848707,-1109.86639144,0.00016466,2]
[398873475,1765945848719,-8968.96,0.00016466,2]
[398873476,1765945848742,-1134.28026808,0.00016466,2]
[398873477,1765945848756,-260.0472005,0.00016466,2]
[398873478,1765945848766,-164.56509548,0.00017,2]
[398873479,1765945848799,-999.99995,0.00017,2]
[398873480,1765945851685,-6697.50952846,0.00017,2]
[398873481,1765945851696,-735.64297978,0.00017,2]
[398873482,1765945851842,-56188.78836424,0.00017,2]
[398873483,1765945851853,-1332.06751711,0.00017,2]
[398873484,1765945854354,-3838.64415084,0.00015997,2]
[398873485,1765945854365,-423.74647872,0.00015997,2]
[398873486,1765945854376,-1173.93111785,0.00015997,2]
[398873487,1765945854389,-1203.37088605,0.00015997,2]
[398873488,1765945854400,-611.68963455,0.00015997,2]
[398873489,1765945854411,-433.02848958,0.00015997,2]
[398873490,1765945854423,-274.18,0.00015997,2]
[398873491,1765945854434,-1292.61464,0.00015997,2]
[398873492,1765945854445,-2245.3092668,0.00015997,2]
[398873493,1765945854456,-404.72580003,0.00015997,2]
[398873494,1765945854467,-410.0675,0.00015997,2]
[398873495,1765945854478,-143050.67696635,0.00015997,2]
[398873496,1765945854487,-19705.32162505,0.00016611,2]
[398873497,1765945854497,-12728.78921421,0.00017,2]
[398873498,1765945854640,-153695.01037565,0.00017,2]